fUSD/lending_fUSD_20260426
["ID","MTS","AMOUNT","RATE_DAILY","PERIOD"]
[421137921,1777149104119,-10000.01,8.15e-05,2]
[421137922,1777149104243,-10000.01,8.15e-05,2]
[421137923,1777149104387,-10000.01,8.15e-05,2]
[421137924,1777149106097,-10000.01,8.15e-05,2]
[421137925,1777149109339,-10000.01,8.15e-05,2]
[421137926,1777149109354,-10000.01,8.15e-05,2]
[421137927,1777149109380,-10000.01,8.15e-05,2]
[421137928,1777149109469,-10000.01,8.15e-05,2]
[421137929,1777149109599,-10000.01,8.15e-05,2]
[421137930,1777149109733,-10000.01,8.15e-05,2]
[421137931,1777149109871,-10000.01,8.15e-05,2]
[421137932,1777149109959,-10000.01,8.15e-05,2]
[421137933,1777149917060,150.0,7.816e-05,2]
[421137934,1777149922416,150.0,7.816e-05,2]
[421137935,1777149922450,150.0,7.903e-05,2]
[421137936,1777149922522,150.0,7.99e-05,2]
[421137937,1777149923186,150.0,7.816e-05,2]
[421137938,1777149926608,150.0,7.816e-05,2]
[421137939,1777149926859,150.0,7.816e-05,2]
[421137940,1777149929305,150.0,7.816e-05,2]
[421137941,1777149929366,150.0,7.854e-05,2]
[421137942,1777149929436,150.0,7.892e-05,2]
[421137943,1777149930020,150.0,7.967e-05,2]
[421137944,1777149931191,150.0,8.005e-05,2]
[421137945,1777149931244,150.0,7.93e-05,2]
[421137946,1777149935278,150.0,7.816e-05,2]
[421137947,1777149935767,150.0,7.913e-05,2]
[421137948,1777149935811,150.0,8.009e-05,2]
[421137949,1777149942131,150.0,7.816e-05,2]
[421137950,1777149942162,150.0,7.889e-05,2]
[421137951,1777149942200,150.0,7.961e-05,2]
[421137952,1777149943581,150.0,7.816e-05,2]
[421137953,1777149943626,150.0,7.871e-05,2]
[421137954,1777149943729,150.0,7.925e-05,2]
[421137955,1777149943802,150.0,7.979e-05,2]
[421137956,1777150047088,571.94,7.757e-05,2]
[421137961,1777150167400,568.24,7.757e-05,2]
[421137965,1777150232182,-150.0,8.034e-05,2]
[421137967,1777150232191,-150.0,8.034e-05,2]
[421137969,1777150232200,-250.0,8.034e-05,2]
[421137971,1777150232211,-255.0,8.034e-05,2]
[421137973,1777150232220,-150.0,8.043e-05,2]
[421137975,1777150232230,-500.0,8.048e-05,2]
[421137976,1777150232239,-150.0,8.049e-05,2]
[421137977,1777150232249,-300.0,8.049e-05,2]
[421137978,1777150232262,-1200.0,8.049e-05,2]
[421137979,1777150232271,-300.0,8.049e-05,2]
[421137980,1777150232281,-500.0,8.049e-05,2]
[421137981,1777150232290,-500.0,8.049e-05,2]
[421137982,1777150232299,-599.96225012,8.049e-05,2]
[421137983,1777150232309,-151267.23290284,8.05e-05,2]
[421137984,1777150232322,-4481.81941927,8.05e-05,2]
[421137985,1777150232338,-25182.18858594,8.05e-05,2]
[421137986,1777150232351,-1009.25911231,8.05e-05,2]
[421137987,1777150232363,-1200.0,8.05e-05,2]
[421137988,1777150232375,-1800.0,8.05e-05,2]
[421137989,1777150232391,-1046.42972454,8.05e-05,2]
[421137990,1777150232403,-18739.0,8.05e-05,2]
[421137991,1777150232415,-500.0,8.05e-05,2]
[421137992,1777150232426,-1784.80487419,8.05e-05,2]
[421137993,1777150232451,-977.0,8.05e-05,2]
[421137994,1777150232466,-452.04785907,8.05e-05,2]
[421138000,1777150238367,-10339.24356323,8.05e-05,2]
[421138001,1777150238380,-6566.66693677,8.05e-05,2]
[421138002,1777150238421,-4094.26121667,8.05e-05,2]
[421138003,1777150238527,-1317.97390517,8.05e-05,2]
[421138004,1777150238538,-150.0,8.077e-05,2]
[421138005,1777150238549,-150.0,8.081e-05,2]
[421138006,1777150238559,-150.0,8.088e-05,2]
[421138007,1777150238569,-150.0,8.106e-05,2]
[421138008,1777150238580,-150.0,8.106e-05,2]
[421138009,1777150238590,-150.0,8.106e-05,2]
[421138010,1777150238600,-150.0,8.119e-05,2]
[421138011,1777150238610,-150.0,8.142e-05,2]
[421138012,1777150238620,-364.0,8.146e-05,2]
[421138013,1777150238630,-158.0,8.15e-05,3]
[421138014,1777150238640,-415.0,8.15e-05,3]
[421138015,1777150238655,-172.0,8.15e-05,3]
[421138016,1777150238665,-200.10247901,8.15e-05,2]
[421138017,1777150238675,-440.0,8.152e-05,2]
[421138018,1777150238686,-150.0,8.156e-05,2]
[421138019,1777150238696,-150.0,8.164e-05,2]
[421138020,1777150238707,-150.0,8.178e-05,2]
[421138021,1777150238716,-150.0,8.194e-05,2]
[421138022,1777150238727,-150.0,8.196e-05,2]
[421138023,1777150238737,-150.0,8.202e-05,2]
[421138024,1777150238747,-2564.0,8.219e-05,2]
[421138025,1777150238758,-2564.0,8.219e-05,2]
[421138026,1777150238768,-2564.0,8.219e-05,2]
[421138027,1777150238778,-95.33279389,8.219e-05,2]
[421138028,1777150238791,-2468.66720611,8.219e-05,2]
[421138029,1777150238801,-2564.0,8.219e-05,2]
[421138030,1777150238811,-2564.0,8.219e-05,2]
[421138031,1777150238822,-2564.0,8.219e-05,2]
[421138032,1777150238832,-2564.0,8.219e-05,2]
[421138033,1777150238842,-2564.0,8.219e-05,2]
[421138034,1777150238852,-2564.0,8.219e-05,2]
[421138035,1777150238862,-2344.43568739,8.219e-05,2]
[421138036,1777150238874,-219.56431261,8.219e-05,2]
[421138037,1777150238884,-46.14823839,8.219e-05,2]
[421138038,1777150238896,-2517.85176161,8.219e-05,2]
[421138039,1777150238906,-333.36041708,8.219e-05,2]
[421138040,1777150238932,-2230.63958292,8.219e-05,2]
[421138041,1777150238942,-2564.0,8.219e-05,2]
[421138042,1777150238952,-2564.0,8.219e-05,2]
[421138043,1777150238962,-1672.37159759,8.219e-05,2]
[421138044,1777150238992,-449.3404125,8.219e-05,2]
[421138046,1777150241163,-442.28798991,8.219e-05,2]
[421138047,1777150241174,-757.8547155,8.219e-05,2]
[421138048,1777150241222,-295.44116587,8.219e-05,2]
[421138049,1777150241328,-500.0,8.219e-05,2]
[421138050,1777150241342,-1010.70411863,8.219e-05,2]
[421138051,1777150241353,-2564.0,8.219e-05,2]
[421138052,1777150241363,-971.25540466,8.219e-05,2]
[421138059,1777150243734,-1592.74459534,8.219e-05,2]
[421138060,1777150243745,-2564.0,8.219e-05,2]
[421138061,1777150243758,-500.0,8.219e-05,2]
[421138062,1777150243768,-500.0,8.219e-05,2]
[421138063,1777150243779,-500.0,8.219e-05,2]
[421138064,1777150243791,-500.0,8.219e-05,2]
[421138065,1777150243802,-500.0,8.219e-05,2]
[421138066,1777150243813,-297.61625335,8.219e-05,2]
[421138067,1777150243825,-2564.0,8.219e-05,2]
[421138068,1777150243837,-150.0,8.219e-05,2]
[421138069,1777150243848,-150.0,8.219e-05,2]
[421138070,1777150243859,-202.34924487,8.219e-05,2]
[421138071,1777150243870,-2564.0,8.219e-05,2]
[421138072,1777150243881,-2564.0,8.219e-05,2]
[421138073,1777150243893,-2384.46415435,8.219e-05,2]
[421138074,1777150243908,-195.53584565,8.219e-05,2]
[421138075,1777150243920,-578.20924308,8.223e-05,2]
[421138076,1777150243932,-500.0,8.23e-05,2]
[421138077,1777150243944,-333.84755018,8.23e-05,2]
[421138078,1777150244005,-166.15244982,8.23e-05,2]
[421138079,1777150244016,-500.0,8.23e-05,2]
[421138080,1777150244027,-500.0,8.23e-05,2]
[421138081,1777150244039,-500.0,8.23e-05,2]
[421138082,1777150244050,-500.0,8.23e-05,2]
[421138083,1777150244061,-500.0,8.23e-05,2]
[421138084,1777150244071,-224.4834319,8.23e-05,2]
[421138085,1777150244082,-618.64316421,8.23e-05,2]
[421138086,1777150244093,-150.0,8.23e-05,2]
[421138087,1777150244104,-500.0,8.23e-05,2]
[421138088,1777150244115,-302.08790674,8.23e-05,2]
[421138089,1777150244165,-197.91209326,8.23e-05,2]
[421138090,1777150244175,-500.0,8.23e-05,2]
[421138091,1777150244186,-500.0,8.23e-05,2]
[421138092,1777150244196,-500.0,8.23e-05,2]
[421138093,1777150244207,-500.0,8.23e-05,2]
[421138094,1777150244218,-500.0,8.23e-05,2]
[421138095,1777150244228,-500.0,8.23e-05,2]
[421138096,1777150244238,-500.0,8.23e-05,2]
[421138097,1777150244249,-500.0,8.23e-05,2]
[421138098,1777150244260,-500.0,8.23e-05,2]
[421138099,1777150244270,-500.0,8.23e-05,2]
[421138100,1777150244281,-500.0,8.23e-05,2]
[421138101,1777150244292,-500.0,8.23e-05,2]
[421138102,1777150244302,-500.0,8.23e-05,2]
[421138103,1777150244314,-500.0,8.23e-05,2]
[421138104,1777150244324,-293.12826482,8.23e-05,2]
[421138105,1777150244335,-500.0,8.23e-05,2]
[421138106,1777150244345,-150.0,8.23e-05,2]
[421138107,1777150244356,-475.29561519,8.23e-05,2]
[421138108,1777150244366,-150.0,8.23e-05,2]
[421138109,1777150244378,-150.0,8.23e-05,2]
[421138110,1777150244389,-150.0,8.23e-05,2]
[421138111,1777150244400,-150.0,8.23e-05,2]
[421138112,1777150244411,-150.0,8.23e-05,2]
[421138113,1777150244422,-231.10414067,8.23e-05,2]
[421138114,1777150244433,-500.0,8.23e-05,2]
[421138115,1777150244444,-150.0,8.232e-05,2]
[421138116,1777150244456,-150.0,8.251e-05,2]
[421138117,1777150244466,-150.0,8.251e-05,2]
[421138118,1777150244476,-150.0,8.251e-05,2]
[421138120,1777150244487,-150.0,8.251e-05,2]
[421138122,1777150244498,-670.58624095,8.26e-05,2]
[421138124,1777150244509,-305.79126615,8.26e-05,2]
[421138126,1777150244519,-1328.27659266,8.26e-05,2]
[421138128,1777150244531,-771.01748645,8.26e-05,2]
[421138130,1777150244542,-174.61919141,8.26e-05,2]
[421138132,1777150244553,-194.72792766,8.26e-05,2]
[421138133,1777150244563,-392.67,8.262e-05,2]
[421138134,1777150244574,-500.0,8.264e-05,2]
[421138135,1777150244585,-500.0,8.264e-05,2]
[421138136,1777150244595,-165.84662774,8.264e-05,2]
[421138137,1777150244606,-500.0,8.264e-05,2]
[421138138,1777150244617,-500.0,8.264e-05,2]
[421138139,1777150244628,-223.46416058,8.264e-05,2]
[421138140,1777150244639,-500.0,8.264e-05,2]
[421138141,1777150244651,-638.27,8.264e-05,2]
[421138142,1777150244662,-126193.03672929,8.265e-05,2]
[421138144,1777150246840,-3700.0,8.265e-05,2]
[421138163,1777150248043,-3738.05000062,8.265e-05,2]
[421138164,1777150248057,-2562.32027711,8.265e-05,2]
[421138165,1777150248067,-150.0,8.27e-05,2]
[421138166,1777150248076,-150.0,8.299e-05,2]
[421138167,1777150248085,-150.0,8.305e-05,2]
[421138168,1777150248095,-150.0,8.307e-05,2]
[421138169,1777150248104,-150.0,8.323e-05,2]
[421138170,1777150248114,-150.0,8.338e-05,2]
[421138171,1777150248124,-150.0,8.345e-05,2]
[421138172,1777150248134,-150.0,8.359e-05,2]
[421138173,1777150248144,-242.15,8.361e-05,2]
[421138174,1777150248154,-1069.90081207,8.378e-05,2]
[421138175,1777150248163,-150.0,8.383e-05,2]
[421138176,1777150248173,-500.0,8.384e-05,2]
[421138177,1777150248183,-150.0,8.395e-05,2]
[421138178,1777150248192,-150.0,8.395e-05,2]
[421138179,1777150248202,-150.0,8.395e-05,2]
[421138180,1777150248211,-976.924,8.405e-05,2]
[421138181,1777150248220,-152.0,8.412e-05,7]
[421138182,1777150248229,-150.0,8.414e-05,2]
[421138183,1777150248239,-150.0,8.421e-05,2]
[421138184,1777150248248,-150.0,8.424e-05,2]
[421138185,1777150248257,-150.0,8.458e-05,2]
[421138186,1777150248267,-150.0,8.468e-05,2]
[421138187,1777150248277,-150.0,8.468e-05,2]
[421138188,1777150248286,-126.47920874,8.485e-05,2]
[421138189,1777150248298,-943.42160333,8.485e-05,2]
[421138190,1777150248307,-150.0,8.492e-05,2]
[421138191,1777150248317,-150.0,8.496e-05,2]
[421138192,1777150248326,-500.0,8.504e-05,2]
[421138193,1777150248335,-784.87839767,8.505e-05,2]
[421138194,1777150283088,985.2607,7.95e-05,2]
[421138195,1777150287487,568.24,7.757e-05,2]
[421138196,1777150302268,568.24,7.757e-05,2]
[421138197,1777150307605,500.0,7.934e-05,2]
[421138198,1777150325500,394.0,7.934e-05,3]
[421138199,1777150330835,2394.0893,7.95e-05,2]
[421138200,1777150330860,10000.01,7.95e-05,2]
[421138201,1777150330886,10000.01,7.95e-05,2]
[421138202,1777150330911,7894.1179,7.95e-05,2]
[421138203,1777150332746,568.05,7.757e-05,2]
[421138204,1777150346866,568.24,7.757e-05,2]
[421138205,1777150385536,158.0,7.757e-05,3]
[421138206,1777150396799,811.6021,7.95e-05,2]
[421138207,1777150396822,5108.4307,7.95e-05,2]
[421138208,1777150409604,568.24,7.757e-05,2]
[421138209,1777150445244,377.0,7.757e-05,3]
[421138211,1777150477599,500.0,7.934e-05,2]
[421138212,1777150506129,158.0,7.934e-05,3]
[421138213,1777150507855,358.0,7.934e-05,3]
[421138214,1777150511411,480.18,7.757e-05,2]
[421138216,1777150526434,568.24,7.757e-05,2]
[421138217,1777150567270,349.0,7.934e-05,3]
[421138218,1777150571373,478.05,7.757e-05,2]
[421138219,1777150627368,339.0,7.934e-05,3]
[421138220,1777150641621,568.24,7.757e-05,2]
[421138221,1777150643426,147.6293,7.85e-05,2]
[421138222,1777150643449,352.3707,7.85e-05,2]
[421138223,1777150678388,9647.6393,1.31e-05,3]
[421138224,1777150678411,10000.01,1.31e-05,3]
[421138225,1777150678434,10000.01,1.31e-05,3]
[421138226,1777150678457,10000.01,1.31e-05,3]
[421138227,1777150678480,10000.01,1.31e-05,3]
[421138228,1777150678503,10000.01,1.31e-05,3]
[421138229,1777150678528,10000.01,1.31e-05,3]
[421138230,1777150678552,10000.01,1.31e-05,3]
[421138231,1777150678578,10000.01,1.31e-05,3]
[421138232,1777150678603,352.3707,1.31e-05,3]
[421138233,1777150686969,331.0,7.934e-05,3]
[421138234,1777150747960,314.0,7.934e-05,3]
[421138235,1777150806055,162.0,7.934e-05,3]
[421138236,1777150806568,298.0,7.934e-05,3]
[421138240,1777150868538,171.0,7.934e-05,3]
[421138241,1777150876637,-500.0,8.058e-05,2]
[421138242,1777150876667,-254.64604108,8.158e-05,2]
[421138243,1777150876695,-150.0,8.158e-05,2]
[421138244,1777150876724,-178.21,8.166e-05,2]
[421138245,1777150876754,-905.2332,8.178e-05,2]
[421138246,1777150876783,-500.0,8.22e-05,2]
[421138247,1777150876812,-500.0,8.22e-05,2]
[421138248,1777150876841,-578.20924308,8.23e-05,2]
[421138249,1777150876870,-1390.0,8.26e-05,2]
[421138250,1777150882538,-1390.0,8.26e-05,2]
[421138251,1777150882569,-1390.0,8.26e-05,2]
[421138252,1777150882599,-1390.0,8.26e-05,2]
[421138253,1777150882629,-270.01,8.26e-05,2]
[421138254,1777150888617,-1119.99,8.26e-05,2]
[421138255,1777150888649,-1390.0,8.26e-05,2]
[421138256,1777150888678,-1390.0,8.26e-05,2]
[421138257,1777150888708,-257.0,8.26e-05,2]
[421138258,1777150888740,-296.03,8.26e-05,2]
[421138259,1777150891857,-1093.97,8.26e-05,2]
[421138260,1777150891890,-1390.0,8.26e-05,2]
[421138261,1777150891924,-1390.0,8.26e-05,2]
[421138262,1777150891955,-862.07,8.26e-05,2]
[421138263,1777150895269,-527.93,8.26e-05,2]
[421138264,1777150895300,-1390.0,8.26e-05,2]
[421138265,1777150895332,-1390.0,8.26e-05,2]
[421138266,1777150895361,-1390.0,8.26e-05,2]
[421138267,1777150897933,-1390.0,8.26e-05,2]
[421138268,1777150897963,-1390.0,8.26e-05,2]
[421138269,1777150897993,-1390.0,8.26e-05,2]
[421138270,1777150898023,-270.01,8.26e-05,2]
[421138271,1777150902186,-1119.99,8.26e-05,2]
[421138272,1777150902215,-1390.0,8.26e-05,2]
[421138273,1777150902245,-1390.0,8.26e-05,2]
[421138274,1777150902276,-810.03,8.26e-05,2]
[421138275,1777150902426,-579.97,8.26e-05,2]
[421138276,1777150902457,-1390.0,8.26e-05,2]
[421138277,1777150902487,-1390.0,8.26e-05,2]
[421138278,1777150902517,-1390.97912824,8.26e-05,2]
[421138279,1777150903111,498.11174352,7.757e-05,2]
[421138280,1777150903135,70.12825648,7.757e-05,2]
[421138281,1777150924195,476.54,7.757e-05,2]
[421138282,1777150926027,308.0,7.934e-05,3]
[421138283,1777150974790,305.272,7.958e-05,2]
[421138284,1777150988606,300.0,7.934e-05,3]
[421138285,1777151011037,-256.0,8.177e-05,2]
[421138286,1777151011069,-300.0,8.177e-05,2]
[421138287,1777151011101,-300.0,8.177e-05,2]
[421138288,1777151047238,286.0,7.934e-05,3]
[421138289,1777151056622,-300.0,8.177e-05,2]
[421138290,1777151089954,-2833.93912824,8.178e-05,2]
[421138291,1777151096113,-2670.49787324,8.178e-05,2]
[421138292,1777151096140,-4659.01425352,8.178e-05,2]
[421138293,1777151105730,150.0,7.816e-05,2]
[421138294,1777151106454,150.0,7.816e-05,2]
[421138295,1777151109370,150.0,7.816e-05,2]
[421138296,1777151114595,150.0,7.816e-05,2]
[421138297,1777151114633,150.0,7.816e-05,2]
[421138298,1777151114666,150.0,7.99e-05,2]
[421138299,1777151120802,150.0,7.816e-05,2]
[421138300,1777151125357,150.0,7.816e-05,2]
[421138301,1777151125686,150.0,7.816e-05,2]
[421138302,1777151171987,568.24,7.757e-05,2]
[421138303,1777151219749,3600.0,8e-05,2]
[421138304,1777151247850,568.24,7.757e-05,2]
[421138305,1777151255206,-150.0,8.106e-05,2]
[421138306,1777151255237,-150.0,8.106e-05,2]
[421138307,1777151255271,-150.0,8.106e-05,2]
[421138308,1777151255301,-255.0,8.106e-05,2]
[421138309,1777151255331,-150.0,8.164e-05,2]
[421138310,1777151255361,-271.0,8.178e-05,3]
[421138311,1777151255391,-578.20924308,8.192e-05,2]
[421138312,1777151255420,-150.0,8.219e-05,2]
[421138313,1777151255449,-150.0,8.219e-05,2]
[421138314,1777151255478,-500.0,8.219e-05,2]
[421138315,1777151255507,-158.72368467,8.219e-05,2]
[421138316,1777151255535,-150.0,8.219e-05,2]
[421138317,1777151255564,-500.0,8.219e-05,2]
[421138318,1777151255973,-587.45773827,8.219e-05,2]
[421138319,1777151256002,-150.0,8.219e-05,2]
[421138320,1777151256030,-161.75196375,8.219e-05,2]
[421138321,1777151256059,-500.0,8.22e-05,2]
[421138322,1777151256087,-75.72474046,8.22e-05,2]
[421138323,1777151258385,-424.27525954,8.22e-05,2]
[421138324,1777151258416,-150.0,8.251e-05,2]
[421138325,1777151258445,-150.0,8.251e-05,2]
[421138326,1777151258472,-151.0,8.26e-05,2]
[421138327,1777151258500,-392.7,8.261e-05,2]
[421138328,1777151258534,-1200.0,8.289e-05,2]
[421138329,1777151258562,-300.0,8.289e-05,2]
[421138330,1777151258591,-300.0,8.289e-05,2]
[421138331,1777151261816,392.73,8.268e-05,2]
[421138332,1777151366603,-193.94913492,8.17e-05,2]
[421138333,1777151366636,-150.0,8.17e-05,2]
[421138334,1777151366668,-258.0,8.178e-05,3]
[421138335,1777151366927,-3086.1769897,8.229e-05,2]
[421138336,1777151367039,-10000.01,8.229e-05,2]
[421138337,1777151367167,-10000.01,8.229e-05,2]
[421138338,1777151369430,-500.0,8.22e-05,2]
[421138339,1777151369460,-500.0,8.22e-05,2]
[421138340,1777151369526,-8000.01,8.229e-05,2]
[421138341,1777151378530,-10000.01,8.229e-05,2]
[421138342,1777151378624,-10000.01,8.229e-05,2]
[421138343,1777151383352,400.0,7.9e-05,2]
[421138344,1777151384352,900.0,8e-05,2]
[421138345,1777151406193,162.0,8e-05,3]
[421138346,1777151411616,277.0,8e-05,3]
[421138347,1777151418077,153.0,8e-05,3]
[421138350,1777151431449,-300.0,8.228e-05,2]
[421138351,1777151431460,-300.0,8.228e-05,2]
[421138352,1777151431470,-1200.0,8.228e-05,2]
[421138353,1777151431480,-5000.0,8.229e-05,2]
[421138354,1777151431490,-147550.9744215,8.229e-05,2]
[421138355,1777151431499,-300.0,8.29e-05,2]
[421138356,1777151431509,-10000.01,8.305e-05,2]
[421138357,1777151431519,-5000.0,8.314e-05,2]
[421138358,1777151431528,-150.0,8.338e-05,2]
[421138359,1777151431538,-5000.0,8.34e-05,2]
[421138360,1777151431548,-150.0,8.356e-05,2]
[421138361,1777151431558,-500.0,8.357e-05,2]
[421138362,1777151431569,-500.0,8.357e-05,2]
[421138363,1777151431578,-500.0,8.357e-05,2]
[421138364,1777151431588,-500.0,8.357e-05,2]
[421138365,1777151431599,-500.0,8.357e-05,2]
[421138366,1777151431609,-500.0,8.357e-05,2]
[421138367,1777151431619,-500.0,8.357e-05,2]
[421138368,1777151431628,-500.0,8.357e-05,2]
[421138369,1777151431638,-500.0,8.357e-05,2]
[421138370,1777151431648,-500.0,8.357e-05,2]
[421138371,1777151431658,-396.15434117,8.357e-05,2]
[421138372,1777151431668,-500.0,8.357e-05,2]
[421138373,1777151431679,-500.0,8.357e-05,2]
[421138374,1777151431690,-500.0,8.357e-05,2]
[421138375,1777151431700,-500.0,8.357e-05,2]
[421138376,1777151431709,-500.0,8.357e-05,2]
[421138377,1777151431719,-500.0,8.357e-05,2]
[421138378,1777151431729,-500.0,8.357e-05,2]
[421138379,1777151431740,-500.0,8.357e-05,2]
[421138380,1777151431749,-500.0,8.357e-05,2]
[421138381,1777151431759,-500.0,8.357e-05,2]
[421138382,1777151431770,-500.0,8.357e-05,2]
[421138383,1777151431780,-500.0,8.357e-05,2]
[421138384,1777151431790,-500.0,8.357e-05,2]
[421138385,1777151431800,-505.1603898,8.357e-05,2]
[421138386,1777151431810,-500.0,8.357e-05,2]
[421138387,1777151431820,-500.0,8.357e-05,2]
[421138388,1777151431829,-500.0,8.357e-05,2]
[421138389,1777151431839,-500.0,8.357e-05,2]
[421138390,1777151431849,-500.0,8.357e-05,2]
[421138391,1777151431859,-500.0,8.357e-05,2]
[421138392,1777151431869,-500.0,8.357e-05,2]
[421138393,1777151431878,-500.0,8.357e-05,2]
[421138394,1777151431887,-500.0,8.357e-05,2]
[421138395,1777151431897,-500.0,8.357e-05,2]
[421138396,1777151431907,-486.36047331,8.357e-05,2]
[421138397,1777151431917,-500.0,8.357e-05,2]
[421138398,1777151431926,-500.0,8.357e-05,2]
[421138399,1777151431935,-500.0,8.357e-05,2]
[421138400,1777151431945,-500.0,8.357e-05,2]
[421138401,1777151431955,-204.0,8.357e-05,2]
[421138402,1777151431965,-749.0,8.357e-05,2]
[421138403,1777151431974,-749.0,8.357e-05,2]
[421138404,1777151431984,-749.0,8.357e-05,2]
[421138405,1777151431994,-749.0,8.357e-05,2]
[421138406,1777151432004,-749.0,8.357e-05,2]
[421138407,1777151432013,-749.0,8.357e-05,2]
[421138408,1777151432023,-749.0,8.357e-05,2]
[421138409,1777151432032,-749.0,8.357e-05,2]
[421138410,1777151432042,-500.0,8.357e-05,2]
[421138411,1777151432051,-749.0,8.357e-05,2]
[421138412,1777151432061,-500.0,8.357e-05,2]
[421138413,1777151432071,-749.0,8.357e-05,2]
[421138414,1777151432080,-500.0,8.357e-05,2]
[421138415,1777151432090,-749.0,8.357e-05,2]
[421138416,1777151432100,-500.0,8.357e-05,2]
[421138417,1777151432111,-749.0,8.357e-05,2]
[421138418,1777151432121,-500.0,8.357e-05,2]
[421138419,1777151432130,-749.0,8.357e-05,2]
[421138420,1777151432140,-749.0,8.357e-05,2]
[421138421,1777151432150,-749.0,8.357e-05,2]
[421138422,1777151432159,-749.0,8.357e-05,2]
[421138423,1777151432169,-749.0,8.357e-05,2]
[421138424,1777151432178,-749.0,8.357e-05,2]
[421138425,1777151432188,-749.0,8.357e-05,2]
[421138426,1777151432198,-749.0,8.357e-05,2]
[421138427,1777151432208,-749.0,8.357e-05,2]
[421138428,1777151432218,-749.0,8.357e-05,2]
[421138429,1777151432227,-500.0,8.357e-05,2]
[421138430,1777151432237,-500.0,8.357e-05,2]
[421138431,1777151432247,-500.0,8.357e-05,2]
[421138432,1777151432257,-500.0,8.357e-05,2]
[421138433,1777151432267,-500.0,8.357e-05,2]
[421138434,1777151432277,-500.0,8.357e-05,2]
[421138435,1777151432286,-500.0,8.357e-05,2]
[421138436,1777151432295,-500.0,8.357e-05,2]
[421138437,1777151432305,-500.0,8.357e-05,2]
[421138438,1777151432315,-500.0,8.357e-05,2]
[421138439,1777151432324,-749.0,8.357e-05,2]
[421138440,1777151432334,-500.0,8.357e-05,2]
[421138441,1777151432344,-500.0,8.357e-05,2]
[421138442,1777151432354,-268.0,8.357e-05,2]
[421138443,1777151432364,-749.26976104,8.357e-05,2]
[421138444,1777151432375,-150.0,8.357e-05,2]
[421138445,1777151432384,-150.0,8.357e-05,2]
[421138446,1777151432394,-150.0,8.357e-05,2]
[421138447,1777151432404,-263.79942397,8.357e-05,2]
[421138448,1777151432415,-500.0,8.357e-05,2]
[421138449,1777151432427,-500.0,8.357e-05,2]
[421138450,1777151432438,-500.0,8.357e-05,2]
[421138451,1777151432450,-500.0,8.357e-05,2]
[421138452,1777151432460,-500.0,8.357e-05,2]
[421138453,1777151432469,-45312.6959914,8.395e-05,2]
[421138454,1777151432480,-150.0,8.395e-05,2]
[421138455,1777151432490,-150.0,8.395e-05,2]
[421138456,1777151432499,-150.0,8.395e-05,2]
[421138457,1777151432509,-670.58624095,8.4e-05,2]
[421138458,1777151432519,-1328.27659266,8.4e-05,2]
[421138459,1777151432528,-151.0,8.4e-05,2]
[421138460,1777151432538,-194.72792766,8.4e-05,2]
[421138461,1777151432547,-174.61919141,8.4e-05,2]
[421138462,1777151432557,-500.0,8.404e-05,2]
[421138463,1777151432567,-500.0,8.404e-05,2]
[421138464,1777151432577,-500.0,8.404e-05,2]
[421138465,1777151432587,-155.57005476,8.404e-05,2]
[421138466,1777151432596,-500.0,8.404e-05,2]
[421138467,1777151432605,-179.45144268,8.404e-05,2]
[421138468,1777151432615,-500.0,8.404e-05,2]
[421138469,1777151432625,-466.09263942,8.404e-05,2]
[421138470,1777151432635,-177.77358335,8.404e-05,2]
[421138471,1777151432644,-5421.52,8.404e-05,2]
[421138472,1777151432654,-330.885,8.404e-05,2]
[421138473,1777151432663,-616901.18542709,8.405e-05,2]
[421138474,1777151432678,-112999.77193792,8.405e-05,2]
[421138475,1777151432690,-83049.8002689,8.405e-05,2]
[421138476,1777151432702,-47713.69596609,8.405e-05,2]
[421138477,1777151432712,-1099.04509788,8.444e-05,2]